bitfinex/quotes_ETHUSD_20250802
["timestamp","ask_amount","ask_price","bid_price","bid_amount"]
[1754095164128,4.9834,3491.7,3490.8,3.34539923]
[1754095164338,2.86424964,3491.4,3491.0,0.1432]
[1754095164509,4.51,3491.3,3491.0,0.1432]
[1754095166859,3.72365251,3491.8,3491.3,2.86420871]
[1754095166860,3.0,3491.7,3491.3,2.86420871]
[1754095167004,4.511,3491.8,3491.2,0.1432]
[1754095167005,4.511,3491.8,3491.4,3.34493463]
[1754095167211,4.511,3491.8,3491.5,0.4808]
[1754095167455,4.97642,3491.8,3491.5,0.4808]
[1754095167609,4.511,3491.8,3491.6,3.34479239]
[1754095167811,4.511,3491.8,3491.7,0.4808]
[1754095168660,0.1432,3492.1,3491.7,0.4808]
[1754095168855,4.509,3492.3,3492.0,2.86368843]
[1754095169158,4.509,3492.3,3492.1,3.34438223]
[1754095169312,4.509,3492.3,3492.2,3.34432442]
[1754095170015,4.509,3492.3,3492.2,3.80152442]
[1754095170807,2.86268103,3493.3,3492.4,2.86329274]
[1754095171007,2.86297711,3492.9,3492.0,4.9888]
[1754095171460,2.86297711,3492.9,3492.3,2.86342104]
[1754095171909,0.8598,3492.5,3491.3,0.4808]
[1754095172106,0.55,3492.3,3491.3,0.4808]
[1754095172346,7.511,3492.4,3491.4,3.32138055]
[1754095172532,7.511,3492.4,3491.5,3.8307395]
[1754095172735,7.511,3492.4,3492.1,2.86355072]
[1754095172938,4.513,3492.7,3492.4,2.86330636]
[1754095173151,4.513,3492.7,3492.5,3.34405927]
[1754095173461,4.9643,3492.7,3492.6,2.86319647]
[1754095173758,4.9643,3492.7,3492.6,3.34399647]
[1754095173759,4.513,3492.7,3492.6,3.34399647]
[1754095173928,4.512,3493.0,3492.8,2.862985]
[1754095174110,4.512,3493.1,3492.6,0.938]
[1754095174306,4.512,3493.1,3492.7,0.4808]
[1754095174512,0.73747807,3493.0,3492.7,0.4808]
[1754095175837,3.0,3493.2,3492.8,0.4808]
[1754095176055,3.0,3493.2,3492.9,0.4808]
[1754095176922,3.0,3493.2,3492.7,2.86311197]
[1754095177334,3.0,3493.2,3492.7,0.4808]
[1754095177622,1.03756573,3493.1,3492.7,0.4808]
[1754095178350,1.03756573,3493.1,3492.6,2.86316148]
[1754095178555,1.03756573,3493.1,3492.8,0.4808]
[1754095178760,1.03756573,3493.1,3492.9,0.1432]
[1754095179763,3.90037284,3493.1,3492.9,0.1432]
[1754095180054,1.03756573,3493.1,3492.9,0.1432]
[1754095181957,0.1432,3493.4,3493.0,3.80085274]
[1754095182162,0.1432,3493.4,3493.1,0.938]
[1754095182331,4.503,3493.6,3493.1,3.80077199]
[1754095182530,4.503,3493.6,3493.1,3.31997199]
[1754095182730,4.503,3493.6,3493.2,0.4808]
[1754095182960,4.503,3493.6,3493.2,3.34349093]
[1754095183164,4.503,3493.6,3493.2,0.4808]
[1754095183461,4.503,3493.6,3493.2,3.34350083]
[1754095183861,4.503,3493.6,3493.2,0.4808]
[1754095184048,4.503,3493.6,3493.2,3.34347769]
[1754095184356,4.503,3493.6,3493.2,0.4808]
[1754095184763,4.503,3493.6,3493.2,3.34349721]
[1754095185058,4.503,3493.6,3493.2,0.4808]
[1754095185256,4.503,3493.6,3493.2,3.3434977]
[1754095186259,4.503,3493.6,3493.2,0.4808]
[1754095186926,4.503,3493.6,3493.2,3.34350092]
[1754095187327,4.503,3493.6,3493.3,2.86257828]
[1754095187524,4.503,3493.6,3493.3,0.4808]
[1754095187724,4.503,3493.6,3493.4,3.34328968]
[1754095187925,4.503,3493.6,3493.5,3.34325885]
[1754095188967,0.001,3494.0,3493.8,2.86218896]
[1754095189372,0.001,3494.0,3493.8,3.34298896]
[1754095189618,0.001,3494.0,3493.8,0.4808]
[1754095190020,0.001,3494.0,3493.8,3.34298639]
[1754095190222,0.001,3494.0,3493.9,2.86213114]
[1754095190384,0.001,3494.0,3493.8,3.3429763]
[1754095190585,0.001,3494.0,3493.9,2.86213114]
[1754095191095,0.001,3494.0,3493.9,3.80013114]
[1754095192508,0.001,3494.0,3493.9,3.94333114]
[1754095193182,0.001,3494.0,3493.9,4.50931342]
[1754095193391,0.001,3494.0,3493.9,3.34293114]
[1754095193621,0.001,3494.0,3493.9,7.83193114]
[1754095193932,0.001,3494.0,3493.9,8.30603114]
[1754095198697,0.001,3494.0,3493.9,2.86213114]
[1754095200229,0.001,3494.0,3493.3,0.4789]
[1754095200428,0.438,3493.9,3493.6,2.86231802]
[1754095200725,0.001,3494.0,3493.6,2.86231802]
[1754095200943,0.438,3493.9,3493.4,2.86247489]
[1754095201162,0.36982855,3494.0,3493.5,2.86245885]
[1754095201309,0.438,3493.9,3493.4,4.48]
[1754095201510,0.438,3493.8,3493.4,7.34251492]
[1754095202129,0.438,3493.8,3493.4,7.34253514]
[1754095202445,0.001,3494.0,3493.6,2.86232627]
[1754095202814,0.439,3494.0,3493.6,2.86232627]
[1754095203240,0.001,3494.0,3493.9,2.86213114]
[1754095203448,0.001,3494.0,3493.9,3.34103114]
[1754095203623,0.001,3494.0,3493.7,2.86227364]
[1754095203828,0.001,3494.0,3493.7,7.34527364]
[1754095204227,0.001,3494.0,3493.2,2.86266687]
[1754095204425,0.001,3494.0,3493.9,2.86213114]
[1754095204840,0.001,3494.0,3493.9,3.34103114]
[1754095205446,0.001,3494.0,3493.9,3.81513114]
[1754095208424,0.001,3494.0,3493.9,8.29513114]
[1754095210037,0.001,3494.0,3493.9,3.81513114]
[1754095210226,0.001,3494.0,3493.9,7.82003114]
[1754095211336,0.001,3494.0,3493.9,9.36235626]
[1754095213228,1e-08,3494.0,3493.9,9.50555626]
[1754095213428,1e-08,3494.0,3493.9,9.36235626]
[1754095213672,1e-08,3494.0,3493.9,12.36235626]
[1754095220977,1e-08,3494.0,3493.9,20.72343233]
[1754095222378,1e-08,3494.0,3493.9,16.24443233]
[1754095222598,0.43800001,3494.0,3493.9,2.86213114]
[1754095222881,0.001,3494.4,3494.3,2.8618035]
[1754095223191,0.001,3494.4,3494.3,15.69787957]
[1754095223404,0.001,3494.4,3494.3,16.78867957]
[1754095223892,1e-08,3494.4,3494.3,16.78867957]
[1754095224092,1e-08,3494.4,3494.3,18.7537367]
[1754095224889,1e-08,3494.4,3494.3,10.39266063]
[1754095225299,0.78664284,3495.1,3495.0,2.86123032]
[1754095225463,0.001,3495.2,3495.0,7.47843032]
[1754095225665,0.001,3495.2,3495.1,3.37775994]
[1754095225890,0.001,3495.2,3495.1,4.79547104]
[1754095228083,0.001,3495.2,3495.1,5.25507104]
[1754095228512,0.001,3495.2,3495.1,5.22645956]
[1754095229333,0.001,3495.2,3495.1,4.76685956]
[1754095229693,0.001,3495.2,3495.1,4.27885956]
[1754095229887,0.001,3495.2,3495.1,9.24085956]
[1754095230132,0.001,3495.2,3495.1,5.22645956]
[1754095230277,0.001,3495.2,3495.1,4.27885956]
[1754095230478,0.8264,3495.2,3495.1,7.33514846]
[1754095230718,0.8264,3495.2,3495.0,3.00442949]
[1754095230941,0.001,3495.2,3495.1,7.33514846]
[1754095231096,0.439,3495.2,3495.1,7.33514846]
[1754095231299,0.8264,3495.2,3495.1,7.33514846]
[1754095231627,0.8264,3495.2,3495.1,2.86114846]
[1754095231931,0.8264,3495.2,3495.0,0.1432]
[1754095231932,0.8264,3495.2,3495.0,3.00439624]
[1754095232094,0.001,3495.2,3495.1,4.474]
[1754095232792,0.001,3495.2,3494.3,1.96505713]
[1754095232793,0.55,3495.1,3493.6,0.002]
[1754095232989,0.8264,3495.2,3493.6,0.002]
[1754095232990,2.86179047,3494.4,3493.6,0.002]
[1754095233194,0.28617905,3494.3,3493.9,2.86206787]
[1754095233437,0.55,3494.6,3493.6,7.33836069]
[1754095233607,0.8254,3494.5,3493.9,2.86211173]
[1754095233802,3.68712743,3494.4,3493.8,2.86218485]
[1754095234057,0.8254,3494.3,3493.7,7.33626219]
[1754095234335,1.00986167,3494.4,3493.8,2.86220123]
[1754095234544,1.00986167,3494.4,3493.7,4.474]
[1754095234545,0.8254,3494.2,3493.9,2.86209456]
[1754095234712,0.8254,3494.1,3493.7,4.474]
[1754095234907,0.438,3494.7,3493.8,4.50262213]
[1754095235100,0.3874,3494.6,3494.1,2.86193753]
[1754095235303,0.8254,3494.5,3494.2,2.86182317]
[1754095235497,0.8254,3494.5,3494.3,2.86179555]
[1754095235498,0.438,3494.4,3494.3,2.86179555]
[1754095235926,0.438,3494.4,3494.2,2.86185415]
[1754095236304,0.438,3494.4,3494.3,2.8618035]
[1754095236906,2.8620767,3495.2,3494.3,2.8618035]
[1754095236907,0.001,3495.2,3495.0,2.86117415]
[1754095237201,0.438,3495.1,3495.0,2.86117562]
[1754095237401,0.438,3495.1,3494.9,2.8612805]
[1754095237842,0.3884,3495.2,3494.9,2.8612805]
[1754095238044,0.438,3495.0,3494.9,2.8612805]
[1754095238567,0.001,3495.2,3494.9,2.8612805]
[1754095238714,0.001,3495.2,3495.1,2.86114846]
[1754095239153,1e-08,3495.2,3495.1,8.28274846]
[1754095241208,1e-08,3495.2,3495.1,3.80874846]
[1754095241414,1e-08,3495.2,3495.1,8.28274846]
[1754095241655,1e-08,3495.2,3495.1,9.42576416]
[1754095243238,1e-08,3495.2,3495.1,9.56896416]
[1754095245568,1e-08,3495.2,3495.1,13.11896416]
[1754095247573,1e-08,3495.8,3495.2,3.0]
[1754095247727,1e-08,3495.8,3495.7,2.86065737]
[1754095247929,1e-08,3495.8,3495.7,7.47685737]
[1754095248328,1e-08,3495.8,3495.7,7.96485737]
[1754095250165,1e-08,3495.8,3495.7,8.42445737]
[1754095250530,0.55,3497.3,3496.8,2.85969397]
[1754095250664,0.18772548,3497.2,3496.6,2.85987367]
[1754095250859,0.18772548,3497.2,3496.8,0.1432]
[1754095250860,3.0,3497.1,3496.8,0.1432]
[1754095251065,0.18772548,3497.2,3496.8,0.1432]
[1754095251374,1.58924718,3497.1,3496.8,0.1432]
[1754095251581,0.8242,3497.0,3496.8,0.1432]
[1754095251963,0.8242,3496.9,3496.8,0.1432]
[1754095253678,0.4358,3496.9,3496.8,3.00295749]
[1754095254275,0.4358,3497.3,3497.0,2.85951605]
[1754095254478,0.4358,3497.3,3497.1,2.85950257]
[1754095254479,0.4358,3497.2,3497.1,2.85950257]
[1754095255370,0.4358,3497.2,3497.0,2.85957585]
[1754095255710,0.8242,3497.1,3496.8,2.85968104]
[1754095255921,0.001,3497.5,3496.9,2.85967264]
[1754095256066,0.8242,3497.0,3496.5,7.33196412]
[1754095256267,0.8242,3496.9,3496.7,2.85982548]
[1754095256574,0.8242,3496.8,3496.6,2.85989422]
[1754095256782,0.3884,3496.8,3496.7,2.85983927]
[1754095257183,0.3884,3497.0,3496.8,2.85974459]
[1754095257407,3.83298181,3497.4,3496.8,2.85974459]
[1754095257614,3.93115537,3497.3,3496.7,2.85981071]
[1754095257788,0.8242,3497.2,3496.6,2.85990454]
[1754095257988,3.54275537,3497.3,3496.7,2.85981667]
[1754095258331,0.55,3496.8,3495.0,2.86120585]
[1754095258644,0.55,3496.6,3495.7,2.86062249]
[1754095258933,2.86018101,3496.3,3495.6,2.86071338]
[1754095259083,3.55,3496.8,3495.7,2.86062461]
[1754095259084,0.8242,3496.2,3495.7,2.86062461]
[1754095259289,2.85993082,3496.6,3495.7,2.86062461]
[1754095259290,0.8242,3496.1,3495.7,2.86062461]
[1754095259610,0.8242,3496.0,3495.6,2.8607161]
[1754095259808,0.36843829,3496.1,3495.6,2.8607161]
[1754095260028,0.8242,3495.9,3495.1,2.86111078]
[1754095260362,0.8242,3495.9,3495.4,2.86089172]
[1754095260363,0.02885012,3495.8,3495.4,2.86089172]
[1754095260550,3.73766769,3497.2,3495.0,0.4717]
[1754095260833,3.0,3496.9,3496.3,2.86008769]
[1754095261048,3.0,3496.9,3495.3,2.86098475]
[1754095261049,2.86024889,3496.2,3495.3,2.86098475]
[1754095261193,0.4358,3496.1,3495.7,2.86060379]
[1754095261393,2.86018293,3496.3,3495.7,2.86060379]
[1754095261593,0.3884,3496.6,3495.7,0.4717]
[1754095261842,3.4358,3496.7,3496.1,2.86026077]
[1754095262027,1.04311101,3496.6,3496.2,2.86018201]
[1754095262199,1.04311101,3496.6,3496.0,0.4717]
[1754095262402,6.29569624,3496.7,3496.0,0.4717]
[1754095262624,6.29569624,3496.7,3495.5,0.4717]
[1754095262625,2.86014786,3496.4,3495.5,0.4717]
[1754095262812,0.4358,3496.3,3495.8,2.8605315]
[1754095263019,0.4358,3496.3,3495.5,4.471]
[1754095263020,0.75682224,3496.2,3495.5,4.471]
[1754095263241,3.4358,3496.4,3495.5,4.471]
[1754095263405,0.4358,3496.3,3495.7,2.86063272]
[1754095263608,3.29598468,3496.3,3495.7,2.86057943]
[1754095263812,2.8603406,3496.1,3495.5,7.33176352]
[1754095264040,4.05294735,3496.2,3495.5,7.33176352]
[1754095264341,4.05294735,3496.2,3495.2,0.4717]
[1754095264342,3.68453411,3496.1,3496.0,0.1432]
[1754095264556,3.68453411,3496.1,3494.9,2.86127795]
[1754095264557,0.8242,3496.1,3494.8,0.4717]
[1754095264696,0.61090277,3496.2,3495.0,0.1432]
[1754095264697,0.1432,3495.5,3495.0,0.1432]
[1754095264947,2.86114846,3495.1,3495.0,0.1432]
[1754095265291,2.86070825,3495.7,3495.0,2.86123032]
[1754095265473,2.86065753,3495.7,3495.1,0.002]
[1754095265674,2.86082105,3495.5,3495.1,0.002]
[1754095265970,0.02885012,3495.4,3495.1,0.002]
[1754095266175,5.8610666,3495.2,3495.1,0.002]
[1754095266373,6.4110666,3495.2,3495.1,0.002]
[1754095266574,6.4110666,3495.2,3494.7,0.002]
[1754095266575,3.41139407,3494.8,3494.7,0.002]
[1754095266779,3.41139407,3494.8,3493.9,0.002]
[1754095266780,2.86204922,3494.0,3493.9,0.002]
[1754095266984,10.91189934,3494.0,3493.9,0.002]
[1754095267184,7.45549218,3494.0,3493.9,0.002]
[1754095267388,12.95823635,3494.0,3493.9,0.002]
[1754095267761,3.0,3493.9,3491.7,0.4322]
[1754095268100,2.8633009,3492.5,3491.8,0.4717]
[1754095268391,3.0,3492.7,3491.9,2.86376998]
[1754095268561,5.8631438,3492.7,3491.8,0.4717]
[1754095268773,2.86336043,3492.4,3491.8,0.4717]
[1754095268969,3.2991009,3492.5,3491.8,0.4717]
[1754095269269,8.2123766,3497.4,3491.9,0.0286377]
[1754095269270,0.4358,3493.3,3491.9,0.0286377]
[1754095269587,2.86311449,3492.7,3491.8,0.4717]
[1754095269907,3.29910486,3492.5,3491.8,0.4717]
[1754095270108,2.86336043,3492.4,3491.8,0.4717]
[1754095270259,0.4358,3492.5,3491.8,0.4717]
[1754095270580,2.86336043,3492.4,3491.8,0.4717]
[1754095270754,0.65796288,3492.4,3491.8,0.4717]
[1754095270955,2.86329461,3492.5,3491.8,3.33555068]
[1754095271177,3.84890093,3492.8,3491.1,4.474]
[1754095271178,0.55,3492.8,3492.0,0.4717]
[1754095271363,3.0,3493.1,3492.5,2.86327845]
[1754095271568,2.86278663,3493.1,3492.3,0.4737]
[1754095271770,2.86304612,3492.8,3492.3,0.002]
[1754095272084,0.4358,3493.1,3492.3,0.002]
[1754095272439,2.86311449,3492.7,3492.3,0.002]
[1754095272728,7.472,3493.2,3492.3,0.9059]
[1754095272872,3.0,3492.9,3492.4,0.4717]
[1754095273076,3.0,3492.9,3492.4,3.33505812]
[1754095273325,0.52952053,3493.6,3492.3,0.4342]
[1754095273326,3.89380166,3494.0,3492.5,0.93253278]
[1754095273618,3.89380166,3494.0,3492.3,0.002]
[1754095273619,7.473,3493.8,3493.1,2.86272366]
[1754095273913,7.473,3493.8,3493.1,3.33442366]
[1754095274121,3.0,3493.7,3493.1,0.4717]
[1754095274302,4.473,3493.8,3493.1,0.4717]
[1754095274469,0.4358,3494.1,3493.1,0.4717]
[1754095274470,4.473,3493.9,3493.4,2.86247911]
[1754095274664,4.473,3493.9,3493.1,0.9039]
[1754095274665,3.0,3493.8,3493.3,2.86260275]
[1754095274928,3.0,3493.8,3493.5,0.4717]
[1754095275130,2.86173994,3494.4,3493.5,0.4717]
[1754095275427,0.4358,3495.1,3493.6,0.02862376]
[1754095275598,2.86155917,3494.6,3493.7,0.4717]
[1754095275782,2.86155917,3494.6,3493.9,2.86211857]
[1754095275783,3.0,3494.5,3493.9,2.86211857]
[1754095275973,3.60779407,3494.5,3493.8,2.8622034]
[1754095276185,0.60779407,3494.5,3493.9,2.86212235]
[1754095276805,0.60779407,3494.5,3494.0,0.4717]
[1754095277108,0.60779407,3494.5,3494.1,0.4717]
[1754095277326,0.60779407,3494.5,3494.0,2.86204548]
[1754095277476,3.07582549,3495.3,3494.5,2.86163147]
[1754095277672,2.86098475,3495.3,3494.6,0.4717]
[1754095277979,4.06326415,3495.2,3494.6,3.33318139]
[1754095278204,4.06326415,3495.2,3493.9,2.86207397]
[1754095278205,2.8616645,3494.5,3493.9,0.4717]
[1754095278407,0.4358,3494.7,3494.1,2.86195349]
[1754095278608,0.4358,3494.7,3494.0,2.86202636]
[1754095278910,3.0,3494.9,3494.1,0.4717]
[1754095279125,0.4358,3495.8,3494.6,2.86155783]
[1754095279273,6.878,3496.1,3494.6,2.86155783]
[1754095279274,0.02885012,3496.0,3494.9,2.86123872]
[1754095279471,2.86073992,3495.6,3494.9,2.86123872]
[1754095279820,8.48151457,3495.9,3495.2,2.86105386]
[1754095279821,8.04572828,3495.9,3495.2,2.86105386]
[1754095280031,0.70522085,3495.9,3495.2,0.4717]
[1754095280202,0.70522085,3495.9,3495.0,0.4322]
[1754095280203,0.70522085,3495.9,3495.3,0.4717]
[1754095280402,4.2273301,3495.8,3495.3,0.4717]
[1754095281712,1.2273301,3495.8,3495.2,2.8610666]
[1754095281912,9.73835159,3496.1,3495.2,2.8610666]
[1754095281913,3.0,3496.1,3495.4,2.86082998]
[1754095282112,2.86033212,3496.1,3495.5,2.86081697]
[1754095282531,2.86033212,3496.1,3495.4,3.32638204]
[1754095282826,5.86027613,3496.2,3495.5,2.8608113]
[1754095283030,1.03410894,3496.1,3495.4,0.4655]
[1754095283190,3.89450739,3496.1,3495.4,3.32638571]
[1754095283837,1.03410894,3496.1,3494.9,4.48]
[1754095284043,0.001,3496.4,3495.5,0.9303]
[1754095284256,0.001,3496.4,3495.6,2.860672]
[1754095284561,0.001,3496.4,3495.6,3.326172]
[1754095284860,2.86016646,3496.3,3495.6,3.326172]
[1754095285063,2.86016646,3496.3,3495.5,0.4648]
[1754095285064,1.74151976,3496.3,3495.7,2.86064149]
[1754095285258,1.74151976,3496.3,3495.7,0.4655]
[1754095285259,4.60169364,3496.3,3495.7,0.4655]
[1754095285760,2.86056666,3495.9,3495.2,2.86104652]
[1754095285947,2.86041189,3496.0,3495.9,0.1432]
[1754095286152,2.86041189,3496.0,3495.1,0.4655]
[1754095286153,2.86049121,3496.0,3495.8,0.1432]
[1754095286462,2.86049372,3495.9,3495.8,0.1432]
[1754095288641,3.72039372,3495.9,3495.8,0.1432]
[1754095289037,0.02885012,3495.9,3495.0,3.32673032]
[1754095289238,2.86066059,3495.7,3495.5,0.1432]
[1754095289430,3.0,3495.7,3495.5,0.1432]
[1754095290031,3.0,3495.7,3495.6,0.4655]
[1754095290540,7.472,3495.8,3495.6,0.4655]
[1754095290841,11.66629963,3495.8,3495.6,0.4655]
[1754095291757,11.66629963,3495.8,3495.5,0.1432]
[1754095291758,8.80570357,3495.8,3495.5,0.1432]
[1754095292065,5.86065737,3495.7,3495.5,0.1432]
[1754095292276,2.86073921,3495.6,3495.5,0.1432]
[1754095292623,6.33223921,3495.6,3495.5,0.1432]
[1754095292824,0.55,3495.5,3494.9,0.002]
[1754095293056,3.0,3495.3,3495.2,0.1432]
[1754095293528,5.86098475,3495.3,3495.2,0.1432]
[1754095293770,10.33398475,3495.3,3495.2,0.1432]
[1754095295210,4.473,3495.6,3495.2,0.9303]
[1754095295380,4.9203,3495.5,3494.9,0.002]
[1754095295770,4.9203,3495.5,3495.0,3.32672755]
[1754095295981,4.9203,3495.5,3495.0,2.86122755]
[1754095296182,4.9203,3495.5,3494.9,0.002]
[1754095296183,7.78112783,3495.5,3495.1,0.4655]
[1754095296386,2.88980631,3495.4,3495.1,0.4655]
[1754095296609,7.78112621,3495.5,3495.1,0.4655]
[1754095297073,4.9203,3495.5,3495.1,0.4655]
[1754095297268,0.4473,3495.5,3494.9,0.002]
[1754095297613,0.4715,3495.9,3494.9,0.002]
[1754095297614,2.86070788,3495.7,3495.2,0.4655]
[1754095297772,7.472,3495.8,3494.9,0.4675]
[1754095297973,2.86082105,3495.5,3494.9,3.32881119]
[1754095298169,4.474,3495.4,3494.9,3.32881119]
[1754095298673,4.474,3495.4,3495.0,0.4655]
[1754095299102,4.474,3495.4,3495.0,3.32670127]
[1754095299681,4.474,3495.4,3495.1,2.86113359]
[1754095299880,4.474,3495.4,3495.1,3.32663359]
[1754095300386,5.31079673,3495.4,3495.1,0.4655]
[1754095300567,0.02885012,3495.3,3494.9,2.8632497]
[1754095300769,5.31079673,3495.4,3494.9,0.002]
[1754095301014,5.78229673,3495.4,3494.9,2.86327877]
[1754095301315,3.0,3495.1,3494.9,0.002]
[1754095301520,1.75306702,3495.3,3494.9,0.002]
[1754095301521,4.472,3495.0,3494.9,0.002]
[1754095302021,2.86099077,3495.3,3494.9,0.002]
[1754095302218,7.472,3495.2,3494.9,0.4675]
[1754095302514,4.473,3495.1,3494.9,0.002]
[1754095302756,8.08153032,3495.0,3494.9,0.002]
[1754095302955,8.19413032,3495.0,3494.9,0.002]
[1754095303861,11.74413032,3495.0,3494.9,0.002]
[1754095305025,11.35573032,3495.0,3494.9,0.002]
[1754095305254,11.49893032,3495.0,3494.9,0.002]
[1754095305562,4.61804666,3495.0,3494.9,0.002]
[1754095305766,3.0,3495.1,3494.9,0.1452]
[1754095305965,5.86117898,3495.1,3494.9,0.1452]
[1754095306149,3.0,3495.1,3494.9,0.1452]
[1754095306352,1.03330972,3495.0,3494.9,0.1452]
[1754095306528,5.50630972,3495.0,3494.9,0.1452]
[1754095307538,5.50630972,3495.0,3494.9,0.6107]
[1754095307740,4.472,3495.3,3494.9,0.9323]
[1754095307957,2.86041189,3496.0,3494.9,0.4668]
[1754095307958,4.472,3495.2,3494.9,0.4668]
[1754095308124,4.472,3495.2,3495.0,0.4655]
[1754095309729,4.472,3495.5,3495.1,3.7913981]
[1754095309959,4.472,3495.5,3495.1,3.3258981]
[1754095310186,5.2602716,3495.5,3495.2,0.4655]
[1754095310605,4.472,3495.5,3495.3,0.4655]
[1754095310766,4.472,3495.5,3495.4,3.3257029]
[1754095311100,4.472,3495.5,3495.4,3.7912029]
[1754095311301,0.58614119,3495.9,3495.7,2.86060293]
[1754095311595,7.472,3495.8,3495.6,2.86070533]
[1754095311809,0.001,3496.1,3494.9,0.002]
[1754095311810,0.001,3496.1,3495.7,0.9042]
[1754095311962,0.001,3496.1,3495.2,4.472]
[1754095311963,0.001,3496.1,3496.0,2.86041189]
[1754095312383,0.001,3496.1,3496.0,3.76461189]
[1754095314200,0.001,3496.1,3496.0,3.31571189]
[1754095314776,0.001,3496.1,3496.0,3.76461189]
[1754095316295,0.001,3496.1,3495.5,0.4489]
[1754095316503,0.001,3496.1,3495.5,0.9042]
[1754095316707,0.001,3496.1,3495.5,3.76495149]
[1754095316862,0.001,3496.1,3495.6,0.4553]
[1754095317061,0.001,3496.1,3495.7,2.86062141]
[1754095317286,0.001,3496.1,3495.7,3.31592141]
[1754095317488,0.001,3496.1,3495.7,2.86062141]
[1754095317794,0.001,3496.1,3496.0,0.1432]
[1754095318000,0.73451818,3496.1,3496.0,0.1432]
[1754095318199,0.001,3496.1,3496.0,0.5985]
[1754095318504,0.001,3496.1,3496.0,0.1432]
[1754095318671,0.001,3496.1,3496.0,0.9042]
[1754095320104,0.001,3496.1,3496.0,3.76461189]
[1754095320692,0.001,3496.1,3496.0,0.9042]
[1754095320892,0.001,3496.1,3496.0,3.76461189]
[1754095321561,0.001,3496.1,3496.0,3.31571189]
[1754095322160,0.001,3496.1,3495.6,0.4553]
[1754095322501,0.77461997,3496.1,3495.5,4.471]
[1754095322699,0.444,3496.1,3495.6,2.86073921]
[1754095322864,3.30434783,3496.1,3495.5,7.33178979]
[1754095323063,2.86048495,3496.0,3495.4,2.86089284]
[1754095323267,2.86048495,3496.0,3495.2,3.31632108]
[1754095323268,0.55,3496.0,3495.2,0.4553]
[1754095323493,0.55,3496.0,3494.9,0.4509]
[1754095323494,1.09841939,3495.9,3495.0,4.471]
[1754095323799,1.09841939,3495.9,3495.1,0.4553]
[1754095324003,0.65541939,3495.9,3495.2,2.8610666]
[1754095324180,3.51596787,3495.9,3495.3,3.31627471]
[1754095324680,4.00041504,3495.8,3495.3,0.4553]
[1754095324863,2.86070842,3495.7,3495.1,0.4553]
[1754095325064,2.86070842,3495.7,3495.1,3.31639798]
[1754095325313,3.001,3496.1,3495.2,0.9042]
[1754095325506,2.86041428,3496.0,3495.4,2.86089272]
[1754095325701,3.43277821,3495.9,3495.3,3.31626114]
[1754095326111,2.86057554,3495.8,3495.3,0.4553]
[1754095326441,0.02885012,3495.7,3495.3,0.4553]
[1754095327110,2.86061997,3495.8,3495.3,0.4553]
[1754095327438,7.90378517,3495.9,3495.3,3.31627028]
[1754095327750,1.12081967,3495.8,3495.3,3.31627028]
[1754095328049,3.98142413,3495.8,3495.3,0.4553]
[1754095328220,1.12081967,3495.8,3495.3,3.31628229]
[1754095328421,3.98143583,3495.8,3495.3,0.4553]
[1754095328627,1.12081967,3495.8,3495.7,0.1432]
[1754095328807,2.86079913,3495.6,3494.9,0.002]
[1754095329130,0.83630188,3495.5,3494.9,0.002]
[1754095329331,2.86111514,3495.2,3494.9,0.002]
[1754095329713,0.443,3495.2,3494.9,0.002]
[1754095329908,2.86121257,3495.1,3494.9,0.002]
[1754095330109,0.55,3495.4,3494.9,0.002]
[1754095330334,2.86103969,3495.3,3494.9,0.002]
[1754095330941,0.443,3496.0,3495.0,0.4553]
[1754095331156,2.86086969,3495.5,3495.0,0.9042]
[1754095331452,2.86086969,3495.5,3495.1,0.4553]
[1754095331615,3.8801224,3495.5,3495.1,0.4553]
[1754095333079,1.01925271,3495.5,3495.1,0.4553]
[1754095333282,1.01925271,3495.5,3494.9,0.002]
[1754095333283,3.0,3495.3,3494.9,0.002]
[1754095333578,2.86123032,3495.0,3494.9,0.002]
[1754095333740,7.33223032,3495.0,3494.9,0.002]
[1754095333942,5.8453302,3495.0,3494.9,0.002]
[1754095334338,4.23556052,3495.0,3494.9,0.002]
[1754095334542,4.67856052,3495.0,3494.9,0.002]
[1754095335568,5.64581064,3495.0,3494.9,0.002]
[1754095335771,1.3743302,3495.0,3494.9,0.002]
[1754095335938,4.472,3495.4,3494.9,0.9062]
[1754095336275,4.472,3495.4,3495.0,3.76542121]
[1754095336516,4.472,3495.4,3495.0,0.4489]
[1754095336643,7.33291063,3495.4,3495.1,0.4553]
[1754095336835,0.70440735,3495.3,3495.1,0.4553]
[1754095337039,0.55,3495.2,3494.9,0.002]
[1754095337235,0.55,3495.2,3493.6,0.002]
[1754095337236,2.86155783,3494.6,3493.6,0.002]
[1754095337439,7.90684483,3494.6,3493.8,0.4553]
[1754095337651,8.34984483,3494.6,3493.8,0.4553]
[1754095337874,7.3343324,3494.9,3494.2,2.86183473]
[1754095338036,7.3343324,3494.9,3493.6,0.002]
[1754095338037,4.473,3494.9,3493.8,0.4553]
[1754095338241,2.86155783,3494.6,3493.9,2.86207544]
[1754095338663,2.86155783,3494.6,3493.8,0.4553]
[1754095338874,2.86155783,3494.6,3494.5,0.1452]
[1754095339476,0.8294,3494.8,3494.5,0.1452]
[1754095339667,2.86155783,3494.6,3494.5,0.1452]
[1754095340058,0.21787995,3494.9,3494.5,0.6005]
[1754095340309,7.33839943,3494.8,3494.5,0.1452]
[1754095340510,0.993,3494.7,3494.5,0.002]
[1754095340724,6.40855783,3494.6,3494.5,0.002]
[1754095340932,6.85155783,3494.6,3494.5,0.002]
[1754095342739,6.40855783,3494.6,3494.5,0.002]
[1754095343736,6.86815783,3494.6,3494.5,0.002]
[1754095345349,6.40855783,3494.6,3494.5,0.002]